{"text_format":"1","workbook":"xlsx","n_sheets":1,"sheets":["Отбасылық бюджет"],"not_rendered":{"charts":0,"images":0,"macros":0,"external_links":0,"defined_names":2,"comments":0,"pivot_tables":0},"unopened":[],"bounds":{"document_bytes":16777216,"sheet_cells":100000,"rows_first":2000,"rows_last":500,"rows_between":2000,"halvings":0,"cell_chars":16384,"cell_head_chars":4096},"cells_cut":0,"cells_raw":0,"read":"whole","date_system":"1900"}

{"sheet":"Отбасылық бюджет","index":0,"n_rows":28,"n_cols":16,"rows_kept":28,"cut":false,"hidden":false,"merged":[[11,1,11,15]]}
[null,"ОТБАСЫЛЫҚ БЮДЖЕТТІ ЕСЕПТЕУ"]
[null,"ЖЫЛ:",2013]
[]
[null,"Қол жетімді ақша","Қаң","Ақп","Нау","Сәу","Мам","Мау","Шіл","Там","Қыр","Қаз","Қар","Жел","Жыл басынан бергі қорытынды","ТРЕНД"]
[null,"Ай сайынғы ақша",{"$f":"Кіріс_кестесі[[#Totals],[Қаң]]-Шығындаркестесі[[#Totals],[Қаң]]","v":1220},{"$f":"Кіріс_кестесі[[#Totals],[Ақп]]-Шығындаркестесі[[#Totals],[Ақп]]","v":1587},{"$f":"Кіріс_кестесі[[#Totals],[Нау]]-Шығындаркестесі[[#Totals],[Нау]]","v":1174},{"$f":"Кіріс_кестесі[[#Totals],[Сәу]]-Шығындаркестесі[[#Totals],[Сәу]]","v":1445},{"$f":"Кіріс_кестесі[[#Totals],[Мам]]-Шығындаркестесі[[#Totals],[Мам]]","v":1391},{"$f":"Кіріс_кестесі[[#Totals],[Мау]]-Шығындаркестесі[[#Totals],[Мау]]","v":1434},{"$f":"Кіріс_кестесі[[#Totals],[Шіл]]-Шығындаркестесі[[#Totals],[Шіл]]","v":1085},{"$f":"Кіріс_кестесі[[#Totals],[Там]]-Шығындаркестесі[[#Totals],[Там]]","v":1181},{"$f":"Кіріс_кестесі[[#Totals],[Қыр]]-Шығындаркестесі[[#Totals],[Қыр]]","v":1445},{"$f":"Кіріс_кестесі[[#Totals],[Қаз]]-Шығындаркестесі[[#Totals],[Қаз]]","v":1466},{"$f":"Кіріс_кестесі[[#Totals],[Қар]]-Шығындаркестесі[[#Totals],[Қар]]","v":0},{"$f":"Кіріс_кестесі[[#Totals],[Жел]]-Шығындаркестесі[[#Totals],[Жел]]","v":0},{"$f":"Кіріс_кестесі[[#Totals],[Жыл басынан бергі қорытынды]]-Шығындаркестесі[[#Totals],[Жыл басынан бергі қорытынды]]","v":13428}]
[]
[null,"КІРІС ТҮРІ","Қаң","Ақп","Нау","Сәу","Мам","Мау","Шіл","Там","Қыр","Қаз","Қар","Жел","Жыл басынан бергі қорытынды","ТРЕНД"]
[null,"1-кіріс",4000,4410,4019,4263,4123,4308,4162,4165,4248,4324,null,null,{"$f":"SUM(Кіріс_кестесі[[#This Row],[Қаң]:[Жел]])","v":42022}]
[null,"2-кіріс",275,296,251,269,252,252,262,258,296,270,null,null,{"$f":"SUM(Кіріс_кестесі[[#This Row],[Қаң]:[Жел]])","v":2681}]
[null,"Басқа кіріс",500,507,551,556,588,534,533,585,560,520,null,null,{"$f":"SUM(Кіріс_кестесі[[#This Row],[Қаң]:[Жел]])","v":5434}]
[null,"ЖАЛПЫ КІРІС",{"$f":"SUBTOTAL(109,Кіріс_кестесі[Қаң])","v":4775},{"$f":"SUBTOTAL(109,Кіріс_кестесі[Ақп])","v":5213},{"$f":"SUBTOTAL(109,Кіріс_кестесі[Нау])","v":4821},{"$f":"SUBTOTAL(109,Кіріс_кестесі[Сәу])","v":5088},{"$f":"SUBTOTAL(109,Кіріс_кестесі[Мам])","v":4963},{"$f":"SUBTOTAL(109,Кіріс_кестесі[Мау])","v":5094},{"$f":"SUBTOTAL(109,Кіріс_кестесі[Шіл])","v":4957},{"$f":"SUBTOTAL(109,Кіріс_кестесі[Там])","v":5008},{"$f":"SUBTOTAL(109,Кіріс_кестесі[Қыр])","v":5104},{"$f":"SUBTOTAL(109,Кіріс_кестесі[Қаз])","v":5114},{"$f":"SUBTOTAL(109,Кіріс_кестесі[Қар])","v":0},{"$f":"SUBTOTAL(109,Кіріс_кестесі[Жел])","v":0},{"$f":"SUBTOTAL(109,Кіріс_кестесі[Жыл басынан бергі қорытынды])","v":50137}]
[]
[null,"ШЫҒЫНДАР","Қаң","Ақп","Нау","Сәу","Мам","Мау","Шіл","Там","Қыр","Қаз","Қар","Жел","Жыл басынан бергі қорытынды","ТРЕНД"]
[null,"Үй салу",1500,1500,1500,1500,1500,1500,1500,1500,1500,1500,null,null,{"$f":"SUM(Шығындаркестесі[[#This Row],[Қаң]:[Жел]])","v":15000}]
[null,"Азық-түлік тауарлары",250,331,299,333,324,313,338,225,258,322,null,null,{"$f":"SUM(Шығындаркестесі[[#This Row],[Қаң]:[Жел]])","v":2993}]
[null,"Көлік төлемі",345,345,345,345,345,345,345,345,345,345,null,null,{"$f":"SUM(Шығындаркестесі[[#This Row],[Қаң]:[Жел]])","v":3450}]
[null,"Сақтандыру",120,120,120,120,120,120,120,120,120,120,null,null,{"$f":"SUM(Шығындаркестесі[[#This Row],[Қаң]:[Жел]])","v":1200}]
[null,"Үй телефоны",50,50,50,50,50,50,50,50,50,50,null,null,{"$f":"SUM(Шығындаркестесі[[#This Row],[Қаң]:[Жел]])","v":500}]
[null,"Ұялы телефон",72,70,80,70,75,80,90,73,75,70,null,null,{"$f":"SUM(Шығындаркестесі[[#This Row],[Қаң]:[Жел]])","v":755}]
[null,"Кабельді телеарна",60,63,65,60,65,60,63,60,63,60,null,null,{"$f":"SUM(Шығындаркестесі[[#This Row],[Қаң]:[Жел]])","v":619}]
[null,"Интернет",45,45,45,45,45,45,45,45,45,45,null,null,{"$f":"SUM(Шығындаркестесі[[#This Row],[Қаң]:[Жел]])","v":450}]
[null,"Жарық",155,155,158,160,165,200,340,350,240,180,null,null,{"$f":"SUM(Шығындаркестесі[[#This Row],[Қаң]:[Жел]])","v":2103}]
[null,"Су",35,35,37,39,45,42,42,36,38,40,null,null,{"$f":"SUM(Шығындаркестесі[[#This Row],[Қаң]:[Жел]])","v":389}]
[null,"Газ",50,45,40,40,42,50,55,40,43,30,null,null,{"$f":"SUM(Шығындаркестесі[[#This Row],[Қаң]:[Жел]])","v":435}]
[null,"Ойын-сауық",123,92,58,131,46,105,84,108,132,136,null,null,{"$f":"SUM(Шығындаркестесі[[#This Row],[Қаң]:[Жел]])","v":1015}]
[null,"Оқуға төленетін ақша",550,550,550,550,550,550,550,550,550,550,null,null,{"$f":"SUM(Шығындаркестесі[[#This Row],[Қаң]:[Жел]])","v":5500}]
[null,"Жинақ",200,225,300,200,200,200,250,325,200,200,null,null,{"$f":"SUM(Шығындаркестесі[[#This Row],[Қаң]:[Жел]])","v":2300}]
[null,"ЖАЛПЫ ШЫҒЫНДАР",{"$f":"SUBTOTAL(109,Шығындаркестесі[Қаң])","v":3555},{"$f":"SUBTOTAL(109,Шығындаркестесі[Ақп])","v":3626},{"$f":"SUBTOTAL(109,Шығындаркестесі[Нау])","v":3647},{"$f":"SUBTOTAL(109,Шығындаркестесі[Сәу])","v":3643},{"$f":"SUBTOTAL(109,Шығындаркестесі[Мам])","v":3572},{"$f":"SUBTOTAL(109,Шығындаркестесі[Мау])","v":3660},{"$f":"SUBTOTAL(109,Шығындаркестесі[Шіл])","v":3872},{"$f":"SUBTOTAL(109,Шығындаркестесі[Там])","v":3827},{"$f":"SUBTOTAL(109,Шығындаркестесі[Қыр])","v":3659},{"$f":"SUBTOTAL(109,Шығындаркестесі[Қаз])","v":3648},{"$f":"SUBTOTAL(109,Шығындаркестесі[Қар])","v":0},{"$f":"SUBTOTAL(109,Шығындаркестесі[Жел])","v":0},{"$f":"SUBTOTAL(109,Шығындаркестесі[Жыл басынан бергі қорытынды])","v":36709}]